Cogmind - Beta 10.2 @@@ ROGUE MODE // 2021.03.19 @ 20:20:35 Player: BOTHUNTER Result: Destroyed by as-52086 with Assembled Blade Performance ------------- Evolutions (0) 0 Regions Visited (2) 400 Robots Destroyed (5) 25 Value Destroyed (116) 116 Prototype IDs (0) 0 Alien Tech Used (0) 0 Bonus (0) 0 TOTAL SCORE: 541 Bonus ------- None Cogmind --------- Core Integrity 0/250 Matter 300/300 Energy 100/100 System Corruption 4% Temperature Cool (0) Movement Core (50) Location -10/Mines Parts ------- > --- POWER (1) -------- (None) > --- PROPULSION (2) --- (None) > --- UTILITY (2) ------ (None) > --- WEAPON (2) ------- (None) > --- INVENTORY (4) ---- Light Ion Engine Small Storage Unit Phase Shifter Datajack Peak State ------------ > --- POWER ------------ (None) > --- PROPULSION ------- (None) > --- UTILITY ---------- Visual Processing Unit > --- WEAPON ----------- Small Laser Light Assault Rifle > --- INVENTORY -------- Light Ion Engine Small Storage Unit [Rating: 4] Favorites ----------- Power None Propulsion None Utility Visual Processing Unit Processor Visual Processing Unit Protection Core Shielding Weapon Light Assault Rifle Energy Gun Small Laser Ballistic Gun Light Assault Rifle Special Weapon Mining Laser Build | -11 -10 -10 ------- Run | Scr Mat Min Slots Evolved . | . . . Power . | . . . Propulsion . | . . . Utility . | . . . Weapon . | . . . Parts Attached 7 | 2 3 2 Power . | . . . Engine . | . . . Core . | . . . Reactor . | . . . Propulsion . | . . . Treads . | . . . Leg . | . . . Wheel . | . . . Hover . | . . . Flight . | . . . Utility 2 | . 1 1 Device . | . . . Storage . | . . . Processor 1 | . 1 . Hackware . | . . . Protection 1 | . . 1 Artifact . | . . . Weapon 5 | 2 2 1 Energy Gun 1 | 1 . . Energy Cannon . | . . . Ballistic Gun 1 | 1 . . Ballistic Cannon . | . . . Launcher . | . . . Special Weapon 3 | . 2 1 Impact Weapon . | . . . Slashing Weapon . | . . . Piercing Weapon . | . . . Special Melee Weapon . | . . . Unidentified Prototypes . | . . . Parts Lost 7 | . 2 5 Power . | . . . Propulsion . | . . . Utility 2 | . . 2 Weapon 5 | . 2 3 Highest Loss Streak 4 | . 1 4 Average Slot Usage (%) 32 | . 33 29 Processor 10 | . 9 14 Energy Gun 8 | . 10 . Ballistic Gun 10 | . 12 . Special Weapon 2 | . . 10 Naked Turns . | . . . Heaviest Build 2 | 2 2 2 Greatest Support 3 | 3 3 3 Greatest Overweight (x) . | . . . Average Overweight (x) . | . . . Largest Inventory Capacity 4 | 4 4 4 Average Capacity 4 | 4 4 4 Most Carried 4 | 2 4 4 Average Carried 2 | 1 2 3 Final Capacity 4 | 4 4 4 Final Carried 4 | 2 4 4 Class Distribution -------------------- 100% | Mutant Dominant Class ---------------- Mutant | -10/Materials Mutant | -10/Mines Resources | -11 -10 -10 ----------- Run | Scr Mat Min Matter Collected 269 | 220 24 25 Remotely . | . . . Salvage Created 133 | . 133 . Parts 13 | . 13 . Haulers Intercepted . | . . . Recyclers Shooed . | . . . Parts Field Recycled . | . . . Retrieved Matter . | . . . Parts Self-Destructed . | . . . Prevented . | . . . Kills | -11 -10 -10 ------- Run | Scr Mat Min Combat Hostiles Destroyed 2 | . 2 . Guns 2 | . 2 . Classes Destroyed 3 | . 3 . Operator 1 | . 1 . Watcher 2 | . 2 . Grunt 2 | . 2 . Best Kill Streak 2 | . 2 . Combat Bots Only 2 | . 2 . Max Kills in Single Turn 1 | . 1 . Gunslinging . | . . . Exploded . | . . . Melee . | . . . Uniques/NPCs Destroyed . | . . . Combat | -11 -10 -10 -------- Run | Scr Mat Min Damage Taken 554 | . 249 305 Core 263 | . 121 142 Absorbed by Shields . | . . . Core Remaining (%) 100 | 100 . . Volleys Fired 27 | . 26 1 Largest 2 | . 2 2 Hottest 200 | . 60 200 Shots Fired 42 | . 40 2 Gun 40 | . 40 . Cannon . | . . . Launcher . | . . . Special 2 | . . 2 Kinetic 26 | . 26 . Thermal 16 | . 14 2 Explosive . | . . . Electromagnetic . | . . . Robot Hit Streak 5 | . 5 . Robot Miss Streak 3 | . 3 2 Penetration Max . | . . . Secondary Targets . | . . . Shots Hit Robots 22 | . 22 . Core Hits 10 | . 10 . Critical Hits . | . . . Critical Kills . | . . . Critical Parts Destroyed . | . . . Melee Attacks . | . . . Impact . | . . . Slashing . | . . . Piercing . | . . . Sneak Attacks . | . . . Combat Hostiles . | . . . Follow-up Attacks . | . . . Damage Inflicted 195 | . 190 5 Guns 187 | . 187 . Cannons . | . . . Explosions . | . . . Melee . | . . . Ramming 8 | . 3 5 Kinetic 98 | . 98 . Thermal 89 | . 89 . Explosive . | . . . Electromagnetic . | . . . Impact . | . . . Slashing . | . . . Piercing . | . . . Highest Corruption 4 | . . 4 Average Corruption 2 | . . 2 Corruption Purged . | . . . Overload Shots . | . . . Overflow Damage . | . . . Projectiles . | . . . Explosions . | . . . Melee . | . . . Knockbacks . | . . . Impact . | . . . Kinetic . | . . . Secondary . | . . . Self-Inflicted Damage 3 | . 1 2 Shots . | . . . Rammed 2 | . 1 1 Targets Rammed 2 | . 1 1 Kicked . | . . . Crushed . | . . . Highest Temperature 42 | . 41 42 Average Temperature 14 | . 11 28 Received Heat Transfer 245 | . 135 110 Siege Activations . | . . . Robots Corrupted . | . . . Combat Hostiles . | . . . Parts Fried . | . . . Impact Corruptions . | . . . Robots Melted . | . . . Combat Hostiles . | . . . Parts Melted . | . . . Heat Transferred 200 | . 200 . Parts Sabotaged . | . . . Parts Stolen . | . . . Parts Stripped . | . . . Power Chain Reactions . | . . . Missiles Intercepted . | . . . Alert | -11 -10 -10 ------- Run | Scr Mat Min Peak Influence 254 | . 254 99 Initial 94 | . . 94 Average 109 | . 123 82 Maximum Alert Level 1 | . 1 . Low Security (%) 74 | 100 66 100 Level 1 25 | . 33 . Level 2 . | . . . Level 3 . | . . . Level 4 . | . . . Level 5 . | . . . High Security . | . . . Max Security . | . . . Squads Dispatched 2 | . 2 . Investigation 1 | . 1 . Extermination . | . . . Reinforcement 1 | . 1 . Assault . | . . . Garrison . | . . . Intercept . | . . . Construction Impeded . | . . . Haulers Reinforced . | . . . Stealth | -11 -10 -10 --------- Run | Scr Mat Min Distress Signals . | . . . Communications Jammed . | . . . Distress Signals . | . . . Times Spotted 30 | . 15 15 Peak Tracking Total 14 | . 7 14 Tactical Retreats 3 | . 2 1 Traps | -11 -10 -10 ------- Run | Scr Mat Min Traps Triggered . | . . . Indirectly . | . . . Trap Hack Attempts . | . . . Triggered . | . . . Disarmed . | . . . Reprogrammed . | . . . Reused . | . . . Traps Extracted . | . . . Installed . | . . . Triggered . | . . . Machines | -11 -10 -10 ---------- Run | Scr Mat Min Machines Disabled . | . . . Max in Single Turn . | . . . Machines Sabotaged . | . . . Garrisons Compromised . | . . . Overloaded Fab Kills . | . . . Fab Network Shutdowns . | . . . Hacking | -11 -10 -10 --------- Run | Scr Mat Min Machines Accessed 4 | . 4 . Terminals 3 | . 3 . Fabricators . | . . . Repair Stations . | . . . Recycling Units 1 | . 1 . Scanalyzers . | . . . Garrison Access . | . . . Total Hacks 13 | . 13 . Successful 7 | . 7 . Failed 6 | . 6 . Catastrophic . | . . . Database Lockouts . | . . . Manual 13 | . 13 . Terminals 12 | . 12 . Fabricators . | . . . Repair Stations . | . . . Recycling Units 1 | . 1 . Scanalyzers . | . . . Garrison Access . | . . . Terminal Hacks 1 | . 1 . Robot Analysis 1 | . 1 . Fabricator Hacks . | . . . Repair Station Hacks . | . . . Recycling Unit Hacks . | . . . Scanalyzer . | . . . Garrison Access Hacks . | . . . Unauthorized Hacks 6 | . 6 . Terminals 5 | . 5 . Track 1 | . 1 . Botnet 3 | . 3 . Operators 1 | . 1 . Fabricators . | . . . Repair Stations . | . . . Recycling Units 1 | . 1 . Tunnel 1 | . 1 . Scanalyzers . | . . . Garrison Access . | . . . Data Cores Recovered . | . . . Used . | . . . Hacking Detections 3 | . 3 . Full Trace Events . | . . . Feedback Events . | . . . Feedback Blocked . | . . . Robot Schematics Acquired . | . . . Robots Built . | . . . Matter . | . . . Time . | . . . Total Robot Build Rating . | . . . Part Schematics Acquired . | . . . Parts Built . | . . . Matter . | . . . Time . | . . . Total Part Build Rating . | . . . Parts Repaired . | . . . Time . | . . . Parts Recycled . | . . . Recycled Matter . | . . . Retrieved Matter . | . . . Retrieved Components . | . . . Parts Scanalyzed . | . . . Part Schematics Acquired . | . . . Parts Damaged . | . . . Bothacking | -11 -10 -10 ------------ Run | Scr Mat Min Used RIF Installer . | . . . Robots Hacked . | . . . Non-combat . | . . . Combat . | . . . Robot Hacks Applied . | . . . Relay Couplers Released . | . . . Robots Rewired . | . . . Allies Hacked . | . . . Hacks Repelled . | . . . Allies | -11 -10 -10 -------- Run | Scr Mat Min Total Allies . | . . . Largest Group . | . . . Highest-Rated Group . | . . . Highest-Rated Ally . | . . . Total Orders . | . . . Ally Attacks . | . . . Total Damage . | . . . Kills . | . . . Allies Corrupted . | . . . Allies Melted . | . . . Intel | -11 -10 -10 ------- Run | Scr Mat Min Robot Analysis Total 1 | . 1 . Derelict Logs Recovered 1 | . . 1 Drone Launches . | . . . Drone Recoveries . | . . . Exploration | -11 -10 -10 ------------- Run | Scr Mat Min Turns Passed 476 | 27 360 89 Spaces Moved 604 | 44 419 141 Core 604 | 44 419 141 Treads . | . . . Legs . | . . . Wheels . | . . . Hover . | . . . Flight . | . . . Fastest Speed 50 | 50 50 50 Average Speed 50 | 50 50 50 Slowest Speed 50 | 50 50 50 Overloaded Moves . | . . . Propulsion Burnouts . | . . . Robots Hopped . | . . . Cave-ins Triggered . | . . . Exploration Rate (%) 26 | 3 52 25 Regions Visited 2 Branch Regions 1 Pre-discovered Areas 2 | . 1 1 Known Exits Taken . | . . . Unknown Exits Taken 2 | 1 1 . Scrap Searched 1 | . . 1 Spaces Dug . | . . . Terrain Destroyed . | . . . Melee . | . . . Projectile . | . . . AOE . | . . . Terrain Rammed . | . . . Walls Destroyed . | . . . Machines Disabled . | . . . Actions | -11 -10 -10 --------- Run | Scr Mat Min Total 731 | 47 532 152 Wait 88 | . 82 6 Move 602 | 43 418 141 Hop . | . . . Pick Up 5 | 2 2 1 Fast Attach 6 | 2 3 1 Attach 1 | . . 1 Detach . | . . . Swap . | . . . Drop . | . . . Fire 27 | . 26 1 Melee . | . . . Ram 2 | . 1 1 Kick . | . . . Crush . | . . . Escape Stasis . | . . . Rewire . | . . . Trap . | . . . Miscellaneous . | . . . Route ------- -11/Scrapyard -10/Materials (discovered 3 exits: [*Mat x2] / [*Min]) -10/Mines History --------- Turn | Location | Event 4 | -11/Scrapyard | Discovered new exit (range 15) 28 | -11/Scrapyard | Entered Materials 161 | -10/Materials | Discovered new exit (range 18) 229 | -10/Materials | Discovered new exit (range 15) 274 | -10/Materials | Discovered new exit (range 8) 306 | -10/Materials | Build established: Mutant 388 | -10/Materials | Entered Mines 389 | -10/Mines | Assembled infested the area 391 | -10/Mines | Core integrity fell below 50% 394 | -10/Mines | Assisted by a Guerilla fighting off Assembled 450 | -10/Mines | Core integrity fell below 20% 467 | -10/Mines | Learned location of Storage (-7) 477 | -10/Mines | Destroyed by as-52086 with Assembled Blade Last Messages --------------- 00399_ G-47 Trooper destroyed. 00404_ Acquired 15 matter. 00414_ Searching scrap... 00414_ Found Wheel. 00414_ Found Core Shielding. 00414_ Found Hover Unit. 00414_ Found Wheel. 00414_ Found 26 Matter. 00416_ Acquired Core Shielding. 00423_ Acquired 10 matter. 00446_ Slammed into as-80999. 00446_ Mining Laser destroyed. 00448_ Core Shielding destroyed. 00448_ System corrupted by crushing effect (+2). 00461_ Acquired Phase Shifter. 00466_ Mining Laser destroyed. 00466_ System corrupted by crushing effect (+2). 00467_ Acquired derelict log, extracted data. World map updated: -7/Storage. 00477_ Visual Processing Unit destroyed. Map ----- +----------------------------------------------------+ | ?# ##?????????????????????????? | | ?# ####??????????????????????? | | ??# %=%#??????????????????????? | | ??## #==#??????????????????????? | | ??## * # #??????????????????????? | | ??# =% ## #??????????????????????? | | ??# ## #??????????????????????? | | ??# ## #??????????????????????? | | ??## ### #??????????????????????? | | ???## #" ###?# #??????????????????????? | | ????# ### #???# #??????????????????????? | | ????# #?#%#???# ##?????????????????????? | | ????# #?# ##??# ?????????????????????? | | ????# ### "##?# ?????????????????????? | | ????# #?## #??????????????????? | | ????###### #??# #??????????????????? | | ???????### #?## #??????????????????? | | ?????### ### " #???????????????????? | | ????## %## ####????????????????? | | ???## %! ????????????? | | ???# = ????????????? | | ???# a #### ????????????? | | ???# = # %###????????????????????? | | ???## !%* ## #??????????????????????? | | ????# ## ### #??????????????????????? | | ????# ######?#a@#??????????????????????? | | ????# #??????# ###????????????????????? | | ????# #??????# #????????????????????? | | ????# #??##### #????????????????????? | | ????# #?## #### #????????????????????? | | ????# #?# ## #????????????????????? | | ????# ### #????????????????????? | | ????# ## #????????????????????? | | ????# #####????????????????????? | | ????# ##????????????????????????? | | ????##### #?????????????????????????? | | ????????## ##?????????????????????????? | | ?????????### #??????????????????????????? | | ???????????# #??????????????????????????? | | ???????????# #??????????????????????????? | | ???????????# #??????????????????????????? | | ???????????# #??????????????????????????? | | ???????????# #??????????????????????????? | | ???????????? #??????????????????????????? | | ???????????? ???????????????????????????? | | ???????????? ???????????????????????????? | | ???????????? ???????????????????????????? | | ???????????? ???????????????????????????? | | ????????????"???????????????????????????? | | ????????????"???????????????????????????? | +----------------------------------------------------+ Best States ------------- Heat Dissipation 25 Energy Generation 5 Energy Capacity 100 Matter Stores 300 Matter Capacity 300 Sight Range 18 Terrain Scan Density 10 Core Shielding 20 Evasion (%) 50 Item Schematics ----------------- None Robot Schematics ------------------ None Fabricated ------------ Nothing Alien Tech Used ----------------- None Achievements -------------- None Challenges ------------ None Game ------ Seed VariablePrecisionWings Manual? 0 Play Time 00:08:03 Cumulative 137.5 hours Start 2021.03.19 @ 20:14:07 End 2021.03.19 @ 20:20:35 Sessions 1 Manual Loads 0 Difficulty Rogue Special Mode None Game No. 198 Rogue 174 Adventurer 22 Explorer 2 Win Type - Total 1 Types 1/0/0/0/0/0/0/0/0 Lore% 52 Gallery% 58 Achievement% 45 Wizard Run 0 Options --------- ASCII 0 Keyboard 0 Movement Numpad Keybinds 0 Fullscreen 1 Font 14/SmallcapsGlow Map View 84x54 Tactical HUD 1 Map Filters NONE Filters NONE Steam 1 RUN: 6bd21e6b-e5cb-402d-a095-54d91ed37591